Cogmind - Beta 15 @@@ ROGUE MODE // 2025.08.12 @ 20:55:14 Player: LightKnight Result: Destroyed by Executioner with Helical Railgun Performance ------------- Evolutions (7) 3500 Regions Visited (19) 3800 Robots Destroyed (231) 1155 Value Destroyed (7851) 7851 Prototype IDs (134) 2680 Alien Tech Used (2) 400 Bonus (14139) 14139 TOTAL SCORE: 33525 Bonus ------- High Alert Combat Kills 870 Follower Combat Kills 1228 Registered with UFD 300 Met Optimus in HQ 500 Met Imprinter 300 Met Optimus at Protoforge 1000 Completed Drillbomb Mission10000 Friendly Fire -59 Cogmind --------- Core Integrity 0/1300 Matter 300/300 Energy 100/100 System Corruption 0% Temperature Cool (0) Movement Core (50) Location -3/Protoforge Parts ------- > --- POWER (2) -------- (None) > --- PROPULSION (7) --- (None) > --- UTILITY (8) ------ Plexus Tether Experimental Optical Array Advanced Signal Interpreter Makeshift Hacking Suite > --- WEAPON (4) ------- Gravity Flail > --- INVENTORY (5) ---- Light Antimatter Reactor Hybrid Graviton Reactor Light Humpback Peak State ------------ > --- POWER ------------ Light Antimatter Reactor Light Antimatter Reactor > --- PROPULSION ------- Improved Antigrav System Gravjet Array Gravjet Array Gravjet Array > --- UTILITY ---------- Light Humpback Plexus Tether Experimental Optical Array Experimental Sensor Array Advanced Signal Interpreter Centrium Medium Armor Plating Makeshift Hacking Suite > --- WEAPON ----------- Concept XC Strikerail Gravity Flail Experimental Terror Saw Enhanced Force Lance > --- INVENTORY -------- Light Antimatter Reactor Hybrid Graviton Reactor Cooled Nuclear Pulse Thruster Light Humpback UFD Drillbomb UFD Drillbomb [Rating: 192] Favorites ----------- Power Light Antimatter Reactor Engine Improved Deuterium Engine Power Core Neutrino Core Reactor Light Antimatter Reactor Propulsion Gravjet Array Treads Advanced Treads Leg Aluminum Leg Hover Unit Gravjet Array Flight Unit Cooled Nuclear Pulse Thruster Utility Advanced Signal Interpreter Device Experimental Sensor Array Storage Light Humpback Processor Advanced Signal Interpreter Hackware Makeshift Hacking Suite Protection Centrium Medium Armor Plating Weapon Gravity Flail Energy Gun EM Pulse Gun Energy Cannon Beam Cannon Ballistic Gun Concept XC Strikerail Ballistic Cannon Magnetic Acceleration Cannon Launcher Missile Launcher Impact Weapon Gravity Flail Slashing Weapon Experimental Terror Saw Piercing Weapon Enhanced Force Lance Special Melee Weapon Datajack Build | -11 -10 -10 -10 -9 -8 -8 -8 -8 -6 -6 -6 -5 -5 -5 -5 -4 -3 -3 -3 ------- Run | Yrd Mat Min Exi Min Mat Sto Rec Scr Fac Low Zio Pro Fac Upp Upp Fac Res Qua Frg Slots Evolved 14 | . . . . . 4 . . . 4 . . . 2 . . 2 2 . . Power 1 | . . . . . . . . . . . . . . . . 1 . . . Propulsion 5 | . . . . . 1 . . . 1 . . . 2 . . . 1 . . Utility 6 | . . . . . 2 . . . 2 . . . . . . 1 1 . . Weapon 2 | . . . . . 1 . . . 1 . . . . . . . . . . Parts Attached 153 | 1 10 . 1 2 28 11 1 11 15 5 1 4 7 3 . 4 10 11 28 Power 16 | . . . . 1 3 . . . 2 . . . 1 . . 1 1 1 6 Engine 5 | . . . . 1 3 . . . . . . . 1 . . . . . . Core 3 | . . . . . . . . . 2 . . . . . . 1 . . . Reactor 8 | . . . . . . . . . . . . . . . . . 1 1 6 Propulsion 35 | . 2 . . . 5 4 . 3 2 1 . . 4 . . 1 1 4 8 Treads 17 | . 2 . . . 5 4 . 3 2 1 . . . . . . . . . Leg 1 | . . . . . . . . . . . . . . . . . . . 1 Wheel . | . . . . . . . . . . . . . . . . . . . . Hover 4 | . . . . . . . . . . . . . . . . . . . 4 Flight 13 | . . . . . . . . . . . . . 4 . . 1 1 4 3 Utility 54 | . 4 . . . 7 1 1 5 6 3 . . 1 2 . 2 7 4 11 Device 25 | . 3 . . . 3 . 1 2 4 3 . . . 2 . . 1 3 3 Storage 5 | . 1 . . . 1 . . 1 . . . . . . . . . . 2 Processor 12 | . . . . . 1 1 . 1 1 . . . . . . 1 3 . 4 Hackware 2 | . . . . . . . . . . . . . . . . 1 1 . . Protection 10 | . . . . . 2 . . 1 1 . . . 1 . . . 2 1 2 Artifact . | . . . . . . . . . . . . . . . . . . . . Weapon 48 | 1 4 . 1 1 13 6 . 3 5 1 1 4 1 1 . . 1 2 3 Energy Gun 13 | . 3 . . . 6 2 . . . . 1 . . 1 . . . . . Energy Cannon 5 | . 1 . . . 1 . . . 2 1 . . . . . . . . . Ballistic Gun 14 | 1 . . . . 5 2 . 2 3 . . . . . . . . . 1 Ballistic Cannon 2 | . . . . . . . . . . . . 2 . . . . . . . Launcher 4 | . . . . . 1 2 . . . . . 1 . . . . . . . Special Weapon . | . . . . . . . . . . . . . . . . . . . . Impact Weapon 4 | . . . . 1 . . . . . . . . 1 . . . 1 1 . Slashing Weapon 2 | . . . . . . . . . . . . . . . . . . 1 1 Piercing Weapon 2 | . . . . . . . . . . . . 1 . . . . . . 1 Special Melee Weapon 2 | . . . 1 . . . . 1 . . . . . . . . . . . Unidentified Prototypes 22 | . . . . . 4 1 . . . . 1 . . . . . 1 5 10 Parts Lost 44 | . 4 . . . 5 1 . . 2 . . 6 1 1 . . 1 3 20 Power 6 | . . . . . . . . . . . . 1 . . . . . 2 3 Propulsion 14 | . 1 . . . 1 1 . . . . . 1 . 1 . . 1 1 7 Utility 12 | . 1 . . . 1 . . . 2 . . 2 . . . . . . 6 Weapon 12 | . 2 . . . 3 . . . . . . 2 1 . . . . . 4 Highest Loss Streak 10 | . 1 . . . 1 1 . . 1 . . 3 1 1 . . 1 2 10 To Critical Strikes 1 | . . . . . . 1 . . . . . . . . . . . . . Average Backups 10 | 6 8 12 14 15 18 19 20 18 18 18 19 10 4 4 4 4 3 4 4 Power 1 | 1 1 1 3 4 4 3 3 2 1 1 1 1 1 1 1 1 . 1 1 Propulsion 2 | 4 3 3 3 2 4 5 5 4 4 5 6 3 . . . . . . 1 Utility 2 | . 1 3 2 2 1 3 4 4 4 4 4 2 2 1 2 2 2 . 1 Weapon 3 | 1 2 4 5 5 7 7 8 5 6 6 7 2 . 1 1 1 1 . . Tool/Special . | . . . . . . . . . . . . . . . . . . . . Unused Backups 34 | . 1 . 1 3 7 3 . 4 3 4 . 3 . . . . . 1 4 Power 10 | . . . . 2 1 1 . 1 1 1 . . . . . . . . 3 Propulsion 4 | . . . . 1 1 1 . . . . . 1 . . . . . . . Utility 8 | . . . 1 . 1 . . 1 2 . . 1 . . . . . 1 1 Weapon 10 | . 1 . . . 3 1 . 2 . 3 . . . . . . . . . Tool/Special 2 | . . . . . 1 . . . . . . 1 . . . . . . . Average Slot Usage (%) 83 | . 98 100 100 100 96 99 99 98 92 93 81 49 19 45 47 46 67 73 76 Engine 3 | . 14 14 14 14 9 9 9 8 3 . . . 1 5 5 5 4 3 . Reactor 4 | . . . . . . . . . . . . . . . . . 2 4 8 Treads 12 | . 15 28 28 28 26 26 27 26 25 26 26 15 . . . . . . . Hover 7 | . . . . . . . . . . . . . . . . . . . 15 Flight 1 | . . . . . . . . . . . . . 7 19 17 19 22 22 2 Device 8 | . 12 14 14 14 15 14 8 10 19 13 13 7 3 7 11 9 8 9 3 Storage 5 | . 14 14 14 14 9 9 9 8 6 6 6 3 . . . . . . 3 Processor 10 | . . . . . 1 12 18 15 2 6 6 3 . . . . 7 14 13 Hackware 2 | . . . . . . . . . . . . . . . . 1 5 9 4 Protection 3 | . . . . . 7 . . . 4 6 6 3 1 5 5 5 6 1 4 Energy Gun 2 | . 10 14 6 13 15 . . 3 . . 3 . . . . . . . . Energy Cannon 1 | . 8 14 14 14 3 . . . . . 1 2 . . . . . . . Ballistic Gun 9 | . 8 . . . 7 26 27 17 25 24 10 . 2 . . . . . 3 Impact Weapon 2 | . . . . . . . . . . . . . . 5 5 5 4 4 4 Slashing Weapon 1 | . . . . . . . . . . . . . . . . . . 1 3 Piercing Weapon 1 | . . . . . . . . . . . . . . . . . . . 2 Peak Build Rating 192 | 6 8 8 9 10 39 39 38 50 73 77 81 81 31 31 25 40 80 107 192 Average Rating 103 | 6 7 8 8 9 30 37 37 39 68 74 78 40 15 23 25 28 64 89 174 On Entrance 37 | 6 6 8 8 9 9 39 38 38 50 73 75 81 10 27 25 25 40 74 101 Naked Turns 15 | . . . . . . . . . . . . 14 1 . . . . . . Heaviest Build 99 | 12 29 29 29 29 67 67 63 76 93 99 96 96 14 11 11 11 26 34 93 Greatest Support 102 | 20 40 40 40 40 66 66 64 66 96 102 102 102 16 16 12 12 26 36 102 Greatest Overweight (x) 3 | . 1 . . . 1 1 . 1 1 . . 1 2 3 . . 1 . 2 Average Overweight (x) . | . . . . . . . . . . . . . . . . . . . . Largest Inventory Capacity 25 | 8 15 15 15 15 20 20 20 20 20 20 20 20 5 5 5 5 5 5 25 Average Capacity 19 | 8 11 15 15 15 19 20 20 19 20 20 20 13 5 5 5 5 5 5 22 Most Carried 25 | 6 12 13 15 15 20 20 20 20 20 20 20 20 5 5 5 5 5 5 25 Average Carried 17 | 6 8 12 14 15 18 19 20 19 19 19 20 10 4 4 5 4 4 4 17 Final Capacity 20 | 8 15 15 15 15 20 20 20 20 20 20 20 5 5 5 5 5 5 5 5 Final Carried 20 | 6 12 13 15 15 20 20 20 20 19 20 20 4 5 5 5 5 5 4 4 Class Distribution -------------------- 31% | Scavenger-Scout 16% | Scavenger-Sprinter 13% | Commander-Gunner 10% | Mutant 9% | Skirmisher 6% | Tank 3% | Gunner Dominant Class ---------------- Mutant | -10/Materials Mutant | -10/Mines Mutant | -10/Exiles Mutant | -9/Mines Tank | -8/Materials Gunner | -8/Storage Commander-Gunner | -8/Recycling Commander-Gunner | -8/Scraptown Tank | -6/Factory Skirmisher | -6/Lower Caves Skirmisher | -6/Zion Mutant | -5/Proximity Caves Mutant | -5/Factory Scavenger-Sprinter | -5/Upper Caves Scavenger-Sprinter | -5/Upper Caves Scavenger-Sprinter | -4/Factory Scavenger-Sprinter | -3/Research Hacker-Ninja | -3/Quarantine Scavenger-Scout | -3/Protoforge Resources | -11 -10 -10 -10 -9 -8 -8 -8 -8 -6 -6 -6 -5 -5 -5 -5 -4 -3 -3 -3 ----------- Run | Yrd Mat Min Exi Min Mat Sto Rec Scr Fac Low Zio Pro Fac Upp Upp Fac Res Qua Frg Matter Collected 7032 | 194 222 . . 70 670 1022 87 124 2483 543 30 93 179 260 . . 86 36 933 Remotely 2511 | . . . . . . . . . 2091 400 20 . . . . . . . . Salvage Created 8139 | . 768 91 . 157 2013 1390 262 . 1320 501 33 193 137 32 . 117 86 36 1003 Parts 416 | . 40 8 . 11 128 90 19 . 53 24 . 3 9 . . 5 . . 26 Haulers Intercepted 8 | . 2 . . . 2 4 . . . . . . . . . . . . . Recyclers Shooed 4 | . . . . . 2 . . . 2 . . . . . . . . . . Parts Field Recycled . | . . . . . . . . . . . . . . . . . . . . Retrieved Matter . | . . . . . . . . . . . . . . . . . . . . Parts Self-Destructed 29 | . . . . . . . . . . 24 . 2 . 3 . . . . . Prevented 5 | . . . . . . . . . . 1 . . . 4 . . . . . Kills | -11 -10 -10 -10 -9 -8 -8 -8 -8 -6 -6 -6 -5 -5 -5 -5 -4 -3 -3 -3 ------- Run | Yrd Mat Min Exi Min Mat Sto Rec Scr Fac Low Zio Pro Fac Upp Upp Fac Res Qua Frg Combat Hostiles Destroyed 172 | . 17 2 . 9 38 26 3 . 16 15 1 4 5 . . 2 . . 34 Melee 22 | . . . . . . . . . . . . . . . . 2 . . 20 Guns 98 | . 12 . . 4 24 19 3 . 16 7 1 . 5 . . . . . 7 Cannons 17 | . 5 2 . 5 3 . . . . . . 2 . . . . . . . AOE 28 | . . . . . 11 7 . . . 8 . 2 . . . . . . . Classes Destroyed 24 | . 6 . . 2 5 3 1 . 2 1 . . . . . . . . 4 Worker 9 | . 1 1 . . 2 3 . . 1 . . . 1 . . . . . . Builder 11 | . . . . . 7 2 1 . 1 . . . . . . . . . . Tunneler 1 | . . . . 1 . . . . . . . . . . . . . . . Hauler 8 | . 2 . . . 2 4 . . . . . . . . . . . . . Recycler 4 | . . . . . . . 2 . 2 . . . . . . . . . . Minesweeper 2 | . . . . . . . . . . 1 . . . 1 . . . . . Mechanic 6 | . . . . . 2 1 . . . . . . . . . . . . 3 Operator 4 | . 1 . . . 1 1 . . . . . . . . . . . . 1 Drone 24 | . . . . . . . . . . . . . . . . . . . 24 Watcher 18 | . 3 . . . 2 2 . . 3 . . . 1 . . 1 3 1 2 Swarmer 35 | . 6 . . 8 2 2 . . 1 8 . . 5 . . . . . 3 Grunt 59 | . 11 2 . . 24 11 . . 8 1 . 2 . . . . . . . Brawler 8 | . . . . . 4 . . . 1 2 . . . . . . . . 1 Duelist 7 | . . . . . . 2 . . 1 1 . 1 . . . . . . 2 Protector 1 | . . . . . . 1 . . . . . . . . . . . . . Sentry 22 | . . . . . 6 8 3 . 2 1 . 2 . . . . . . . Demolisher 1 | . . . . . . . . . 1 . . . . . . . . . . Specialist 2 | . . . . . 2 . . . . . . . . . . . . . . Hunter 5 | . . . . . . 2 . . . 2 1 . . . . . . . . Programmer 4 | . . . . . . . . . 2 . . . . . . 2 . . . Hotshot 1 | . . . . . . . . . . . . . . . . . . . 1 Decapitator 1 | . . . . . . . . . . . . . . . . . . . 1 Striker 1 | . . . . . . . . . . . . . . . . . . . 1 Executioner 1 | . . . . . . . . . . . . . . . . . . . 1 Decomposer 1 | . . . . . . . . . . . . . . 1 . . . . . Assembled 1 | . . . . 1 . . . . . . . . . . . . . . . Best Kill Streak 20 | . 4 2 . 4 20 10 2 . 3 4 1 4 4 1 . 2 1 1 8 Combat Bots Only 13 | . 4 2 . 4 13 6 1 . 3 4 1 4 4 . . 2 . . 8 Max Kills in Single Turn 5 | . 2 1 . 1 4 5 1 . 1 4 1 1 1 1 . 1 1 1 1 Gunslinging . | . . . . . . . . . . . . . . . . . . . . Exploded 4 | . . . . . 2 3 . . . 4 . 1 . . . . . . . Melee 1 | . . . . . . . . . . . . . . . . 1 . . 1 Uniques/NPCs Destroyed . | . . . . . . . . . . . . . . . . . . . . Combat | -11 -10 -10 -10 -9 -8 -8 -8 -8 -6 -6 -6 -5 -5 -5 -5 -4 -3 -3 -3 -------- Run | Yrd Mat Min Exi Min Mat Sto Rec Scr Fac Low Zio Pro Fac Upp Upp Fac Res Qua Frg Hostile Shots Fired 773 | . 60 8 . 29 140 90 1 . 68 71 . 49 15 12 . 10 15 22 183 Missed 273 | . 17 . . 8 42 25 . . 26 19 . 15 9 9 . 8 9 12 74 Hits 500 | . 43 8 . 21 98 65 1 . 42 52 . 34 6 3 . 2 6 10 109 Melee 51 | . . . . 1 2 2 . . . . . 8 . . . . . . 38 Projectile 449 | . 43 8 . 20 96 63 1 . 42 52 . 26 6 3 . 2 6 10 71 AOE 1 | . . . . . . . . . 1 . . . . . . . . . . Critical Strikes 34 | . . . . . 1 2 . . 5 . . 1 . . . . . . 25 Part Disruptions 1 | . . . . . . . . . 1 . . . . . . . . . . Damage Taken 10429 | . 539 101 . 172 1616 848 18 . 588 622 . 981 176 57 . 40 217 147 4307 Core 2057 | . 89 . . 50 233 106 . . 6 48 . 109 53 18 . 19 . . 1326 Absorbed by Shields 714 | . . . . . 4 324 7 . 196 124 . 59 . . . . . . . Regen/Repaired (Parts) 396 | . . . . . . 396 . . . . . . . . . . . . . Core Remaining (%) 75 | 100 . . . 44 . . . 38 . . . 80 . . 92 98 . . . Volleys Fired 444 | . 62 7 . 20 98 67 5 . 58 30 4 13 22 . . . . . 58 Largest 4 | . 2 2 . 2 3 3 3 . 4 4 1 3 1 . . . . . 1 Hottest 250 | . 100 100 . 100 171 71 71 . 156 118 250 250 30 . . . . . 32 Shots Fired 1016 | . 118 14 . 40 242 174 16 . 219 83 4 25 23 . . . . . 58 Gun 860 | . 81 7 . 20 200 165 16 . 213 73 3 1 23 . . . . . 58 Cannon 123 | . 37 7 . 20 29 . . . 6 4 1 19 . . . . . . . Launcher 33 | . . . . . 13 9 . . . 6 . 5 . . . . . . . Special . | . . . . . . . . . . . . . . . . . . . . Kinetic 624 | . 42 . . . 24 162 16 . 213 73 . 13 23 . . . . . 58 Thermal 211 | . 37 7 . 20 125 3 . . 4 4 4 7 . . . . . . . Explosive 32 | . . . . . 13 9 . . . 6 . 4 . . . . . . . Electromagnetic 149 | . 39 7 . 20 80 . . . 2 . . 1 . . . . . . . Robot Hit Streak 52 | . 10 7 . 6 8 14 14 . 9 11 2 9 7 . . . . . 52 Robot Miss Streak 9 | . 5 1 . 3 7 4 1 . 6 4 9 5 1 . . . . . 1 Penetration Max 1 | . . . . . . . . . 1 . . . . . . . . . 1 Secondary Targets 7 | . 1 . . . 4 . . . 2 . . . . . . . . . . Max Gunslinging Chain 1 | . 1 . . . 1 . . . 1 . . . . . . . . . . Shots Hit Robots 700 | . 73 10 4 19 151 113 12 2 113 46 3 18 19 2 . 7 4 2 102 Core Hits 371 | . 33 3 . 11 103 70 7 . 56 30 2 18 7 . . 2 1 1 27 Critical Kills 3 | . . . . . . . . . . . . . . . . . . . 3 Critical Parts Destroyed 18 | . . . . . . . 1 . 1 . . . 1 . . 2 1 . 12 Critical Strikes 35 | . . . . . 4 . 1 . 1 . . 1 1 . . 2 1 . 24 Burn 4 | . . . . . 4 . . . . . . . . . . . . . . Destroy 10 | . . . . . . . 1 . 1 . . . . . . . . . 8 Blast 1 | . . . . . . . . . . . . 1 . . . . . . . Smash 13 | . . . . . . . . . . . . . 1 . . 2 1 . 9 Sever 5 | . . . . . . . . . . . . . . . . . . . 5 Impale 2 | . . . . . . . . . . . . . . . . . . . 2 Melee Attacks 162 | . . . 4 5 6 . . 2 . . . 2 12 7 . 12 16 8 88 Impact 100 | . . . . 5 6 . . . . . . . 4 7 . 12 16 6 44 Slashing 38 | . . . . . . . . . . . . . . . . . . 2 36 Piercing 18 | . . . . . . . . . . . . 2 8 . . . . . 8 Sneak Attacks 56 | . . . 4 . . . . 2 . . . . . 2 . . 1 . 47 Combat Hostiles 1 | . . . . . . . . . . . . . . . . . . . 1 Follow-up Attacks 8 | . . . . . . . . . . . . . . . . . . . 8 Damage Inflicted 24000 | . 1303 182 . 288 4562 3202 285 . 2924 1659 157 1129 541 219 . 309 317 134 6789 Guns 11459 | . 758 45 . 120 2357 1693 205 . 2832 884 157 88 493 . . . . . 1827 Cannons 1521 | . 389 127 . 156 308 . . . 83 . . 458 . . . . . . . Explosions 4765 | . 129 . . . 1855 1423 . . . 775 . 583 . . . . . . . Melee 5965 | . . . . . . . . . . . . . 48 219 . 309 317 134 4938 Ramming 290 | . 27 10 . 12 42 86 80 . 9 . . . . . . . . . 24 Kinetic 8855 | . 409 . . . 247 1693 205 . 2832 884 . 265 493 . . . . . 1827 Thermal 2963 | . 518 127 . 156 1724 . . . . . 157 281 . . . . . . . Explosive 4291 | . . . . . 1553 1423 . . . 775 . 540 . . . . . . . Electromagnetic 1636 | . 349 45 . 120 996 . . . 83 . . 43 . . . . . . . Impact 4105 | . . . . . . . . . . . . . 48 219 . 309 317 134 3078 Slashing 1526 | . . . . . . . . . . . . . . . . . . . 1526 Piercing 334 | . . . . . . . . . . . . . . . . . . . 334 Highest Corruption 5 | . . . . . 3 3 3 . . . . . 5 5 5 1 . . . Average Corruption 3 | . . . . . 3 3 3 . . . . . 5 5 5 1 . . . Corruption Purged . | . . . . . . . . . . . . . . . . . . . . Corruption Blocked . | . . . . . . . . . . . . . . . . . . . . Effects 93 | . . . . . 19 24 25 . . . . . 11 13 . 1 . . . Message Errors 22 | . . . . . 5 6 7 . . . . . 1 3 . . . . . Matter Fused 22 | . . . . . 7 6 2 . . . . . 2 5 . . . . . Heat Flow Errors 16 | . . . . . 4 4 3 . . . . . 2 3 . . . . . Energy Discharges 11 | . . . . . 1 1 7 . . . . . 2 . . . . . . Data Loss (minor) 11 | . . . . . 1 5 3 . . . . . 1 1 . . . . . Data Loss (major) 6 | . . . . . 1 1 1 . . . . . 2 . . 1 . . . Misfires 3 | . . . . . . 1 1 . . . . . 1 . . . . . . Alerts 2 | . . . . . . . 1 . . . . . . 1 . . . . . Overload Shots . | . . . . . . . . . . . . . . . . . . . . Overflow Damage 3458 | . . . . 7 60 37 . . 17 . . 15 48 169 . 113 179 35 2778 Projectiles 24 | . . . . 7 . . . . 17 . . . . . . . . . . Explosions 89 | . . . . . 50 24 . . . . . 15 . . . . . . . Melee 3345 | . . . . . 10 13 . . . . . . 48 169 . 113 179 35 2778 Knockbacks 14 | . 1 1 . . . . . . . . . 1 . 1 . 1 1 2 6 Impact 13 | . 1 1 . . . . . . . . . . . 1 . 1 1 2 6 Kinetic 1 | . . . . . . . . . . . . 1 . . . . . . . Secondary . | . . . . . . . . . . . . . . . . . . . . Self-Inflicted Damage 350 | . 71 . . . 65 78 . . . . . 125 . . . . . . 11 Shots 11 | . 2 . . . 2 2 . . . . . 5 . . . . . . . Rammed 28 | . 3 4 . 3 4 7 2 . 2 . . . . . . . . . 3 Targets Rammed 37 | . 6 5 . 4 5 8 4 . 2 . . . . . . . . . 3 Kicked 3 | . 3 . . . . . . . . . . . . . . . . . . Crushed 6 | . . 1 . 1 1 1 2 . . . . . . . . . . . . Highest Temperature 374 | . 57 60 . 108 270 234 252 . 270 374 132 74 184 193 . . 170 . 25 Average Temperature 66 | . 19 32 . 43 77 68 84 . 69 118 59 20 102 80 . . 71 . 20 Received Heat Transfer 1688 | . 174 57 . . 609 234 4 . 193 63 . 168 . . . . 27 21 138 Effects 1 | . . . . . . . . . . 1 . . . . . . . . . Matter Decay 1 | . . . . . . . . . . 1 . . . . . . . . . Siege Activations . | . . . . . . . . . . . . . . . . . . . . Martial Activations . | . . . . . . . . . . . . . . . . . . . . Shielding Activations . | . . . . . . . . . . . . . . . . . . . . Robots Disrupted 1 | . 1 . . . . . . . . . . . . . . . . . . Combat Hostiles 1 | . 1 . . . . . . . . . . . . . . . . . . Robots Corrupted 12 | . . . . . 1 1 . . . . . . 1 1 . 1 1 1 5 Combat Hostiles 2 | . . . . . . . . . . . . . . . . . . . 2 Parts Fried 15 | . . . . . 3 1 . . . 1 . . . 2 . 2 3 . 3 Impact Corruptions 64 | . . . . . 1 1 . . . . . . 1 6 . 6 5 1 43 Robots Melted . | . . . . . . . . . . . . . . . . . . . . Combat Hostiles . | . . . . . . . . . . . . . . . . . . . . Parts Melted 14 | . 1 1 . . 6 1 . . 3 . . . . . . 2 . . . Heat Transferred 5614 | . 1014 259 . 333 3358 . . . . . 225 425 . . . . . . . Parts Sabotaged . | . . . . . . . . . . . . . . . . . . . . Parts Stolen . | . . . . . . . . . . . . . . . . . . . . Parts Stripped . | . . . . . . . . . . . . . . . . . . . . Power Chain Reactions 7 | . 3 . . . 4 . . . . . . . . . . . . . . Alert | -11 -10 -10 -10 -9 -8 -8 -8 -8 -6 -6 -6 -5 -5 -5 -5 -4 -3 -3 -3 ------- Run | Yrd Mat Min Exi Min Mat Sto Rec Scr Fac Low Zio Pro Fac Upp Upp Fac Res Qua Frg Maximum Alert Level 3 | . . . . . 3 3 2 . 3 . . . 1 . . . 1 . 2 Low Security (%) 40 | 100 100 100 . 100 60 . 5 . 64 . . . 70 . . 100 78 100 28 Level 1 13 | . . . . . 8 21 52 . 15 . . . 29 . . . 21 . 12 Level 2 40 | . . . . . 3 24 41 . 8 . . . . . . . . . 59 Level 3 5 | . . . . . 27 54 . . 11 . . . . . . . . . . Level 4 . | . . . . . . . . . . . . . . . . . . . . Level 5 . | . . . . . . . . . . . . . . . . . . . . High Security . | . . . . . . . . . . . . . . . . . . . . Max Security . | . . . . . . . . . . . . . . . . . . . . Peak Influence 1007 | . 180 75 . 164 926 1007 512 . 843 . . . 355 . . 67 255 152 621 Initial 381 | . . 45 . . 14 379 381 . . . . . 12 . . 4 34 136 36 Average 338 | . 109 6 . 54 303 644 363 . 231 . . . 109 . . 16 74 103 395 Influence Increases 8862 | . 584 55 . 305 1442 1120 404 . 1627 398 20 140 517 110 . 95 373 173 1499 Destroy 0b10 Robot/C 3840 | . 340 40 . 240 820 540 80 . 720 340 20 80 200 . . 40 180 . 200 Destroy 0b10 Robot/NC 515 | . 35 5 . 5 80 70 20 . 80 5 . . 20 5 . 5 30 5 150 Destroy Leader 806 | . 70 10 . 20 158 172 . . 200 40 . . 32 . . 12 46 2 44 Allied During Kill 635 | . . . . 40 17 126 64 . 339 13 . . 36 . . . . . . Successful Hack 265 | . 16 . . . 26 31 15 . 90 . . . 17 . . . 14 27 29 Select Force Hacks 270 | . 60 . . . . . 210 . . . . . . . . . . . . Disable Machine 450 | . 30 . . . 60 60 15 . 135 . . . 60 . . 15 30 45 . Anti-Garrison Action 300 | . . . . . 150 . . . . . . . . . . . . . 150 Destroy Structure 386 | . 18 . . . 71 46 . . 63 . . . 92 . . 8 58 4 26 Partial Spotted 165 | . . . . . . . . . . . . . 15 . . 15 15 . 120 Lose Combat Pursuer 1230 | . 15 . . . 60 75 . . . . . 60 45 105 . . . 90 780 Influence Decreases 8297 | . 466 173 . 267 581 1040 1188 195 800 902 343 120 190 434 15 36 197 352 998 Entered New Map 2355 | . . 73 . . 24 520 598 195 . 307 323 . 8 130 5 4 33 107 28 Time Decay 5041 | . 426 100 . 267 472 510 530 . 570 595 20 110 142 294 10 28 114 83 770 Lost Part 380 | . 40 . . . 50 10 . . 20 . . 10 . 10 . . 10 30 200 Lost Ally 389 | . . . . . 35 . 60 . 210 . . . 40 . . 4 40 . . Purge Threat 132 | . . . . . . . . . . . . . . . . . . 132 . Squads Dispatched 60 | . 3 . . . 7 5 . . 18 . . 1 4 . . . 8 3 11 Investigation 21 | . 2 . . . . 1 . . 5 . . . 3 . . . 4 . 6 Extermination 7 | . . . . . . . . . 3 . . . 1 . . . 2 1 . Reinforcement 13 | . 1 . . . 3 1 . . 4 . . . . . . . . 1 3 Assault 11 | . . . . . 3 2 . . 3 . . 1 . . . . . . 2 Garrison 8 | . . . . . 1 1 . . 3 . . . . . . . 2 1 . Intercept . | . . . . . . . . . . . . . . . . . . . . Searches Triggered . | . . . . . . . . . . . . . . . . . . . . Construction Impeded 1 | . . . . . 1 . . . . . . . . . . . . . . Haulers Reinforced 1 | . . . . . . . . . 1 . . . . . . . . . . Active Scanning Responses . | . . . . . . . . . . . . . . . . . . . . Cargo Convoy Interrupts . | . . . . . . . . . . . . . . . . . . . . Stealth | -11 -10 -10 -10 -9 -8 -8 -8 -8 -6 -6 -6 -5 -5 -5 -5 -4 -3 -3 -3 --------- Run | Yrd Mat Min Exi Min Mat Sto Rec Scr Fac Low Zio Pro Fac Upp Upp Fac Res Qua Frg Distress Signals 68 | . 4 . . . 5 2 . . . . . . . . . . 1 1 55 Communications Jammed . | . . . . . . . . . . . . . . . . . . . . Distress Signals . | . . . . . . . . . . . . . . . . . . . . Times Spotted 470 | . 28 2 . 9 65 37 2 . 43 16 1 10 17 6 . 3 15 14 202 Peak Tracking Total 19 | . 4 2 . 4 8 5 1 . 3 4 1 5 5 4 . 2 8 10 19 Tactical Retreats 47 | . 1 . . . 3 4 . . . . . 1 3 4 . . 2 2 27 Traps | -11 -10 -10 -10 -9 -8 -8 -8 -8 -6 -6 -6 -5 -5 -5 -5 -4 -3 -3 -3 ------- Run | Yrd Mat Min Exi Min Mat Sto Rec Scr Fac Low Zio Pro Fac Upp Upp Fac Res Qua Frg Traps Triggered 5 | . 1 . . . . 2 . . . . . . . . . . 1 . 1 Indirectly . | . . . . . . . . . . . . . . . . . . . . Trap Hack Attempts 9 | . . . . . 9 . . . . . . . . . . . . . . Triggered . | . . . . . . . . . . . . . . . . . . . . Disarmed 2 | . . . . . 2 . . . . . . . . . . . . . . Reprogrammed . | . . . . . . . . . . . . . . . . . . . . Reused 7 | . . . . . . . . . . . . . . 7 . . . . . Traps Extracted . | . . . . . . . . . . . . . . . . . . . . Installed 11 | . . . . . . . . . . 2 . . . 9 . . . . . Triggered 7 | . . . . . . . . . . . . . . 7 . . . . . Most Traps Carried 2 | . . . . . . . . . . . . . . 2 1 1 1 1 2 Machines | -11 -10 -10 -10 -9 -8 -8 -8 -8 -6 -6 -6 -5 -5 -5 -5 -4 -3 -3 -3 ---------- Run | Yrd Mat Min Exi Min Mat Sto Rec Scr Fac Low Zio Pro Fac Upp Upp Fac Res Qua Frg Machines Disabled 35 | . 2 . . . 5 4 1 . 9 . . 1 4 . . 1 2 3 3 Max in Single Turn 2 | . 1 . . . 1 1 . . 2 . . 1 1 . . 1 . 1 1 Garrison Access 4 | . . . . . 1 1 . . 1 . . . . . . . . . 1 Machines Repaired . | . . . . . . . . . . . . . . . . . . . . Machines Dismantled . | . . . . . . . . . . . . . . . . . . . . Machines Sabotaged . | . . . . . . . . . . . . . . . . . . . . Overloaded Fab Kills . | . . . . . . . . . . . . . . . . . . . . Hacking | -11 -10 -10 -10 -9 -8 -8 -8 -8 -6 -6 -6 -5 -5 -5 -5 -4 -3 -3 -3 --------- Run | Yrd Mat Min Exi Min Mat Sto Rec Scr Fac Low Zio Pro Fac Upp Upp Fac Res Qua Frg Machines Accessed 92 | . 9 . 1 . 10 10 13 2 16 1 . . 6 . . . 7 5 12 Terminals 51 | . 7 . . . 9 7 6 . 6 . . . 2 . . . 5 5 4 Fabricators 9 | . . . . . . . . . 3 . . . 2 . . . . . 4 Repair Stations 3 | . . . . . 1 2 . . . . . . . . . . . . . Recycling Units 21 | . 2 . . . . . 7 . 5 . . . 2 . . . 2 . 3 Scanalyzers . | . . . . . . . . . . . . . . . . . . . . Garrison Access 4 | . . . . . . 1 . . 2 . . . . . . . . . 1 Total Hacks 209 | . 20 . 1 . 23 38 24 21 27 1 . . 9 . . . 11 12 22 Successful 104 | . 12 . 1 . 11 18 11 21 11 1 . . 6 . . . 3 4 5 Failed 104 | . 8 . . . 12 20 13 . 16 . . . 3 . . . 8 7 17 Catastrophic 23 | . 1 . . . 3 3 3 . 6 . . . 1 . . . 1 1 4 Database Lockouts 1 | . . . . . . . . . . . . . . . . . . 1 . Manual 109 | . 16 . . . 15 11 22 . 14 . . . 5 . . . 8 7 11 Terminals 125 | . 18 . . . 20 28 16 . 13 . . . 4 . . . 9 12 5 Fabricators 17 | . . . . . . . . . 5 . . . 3 . . . . . 9 Repair Stations 11 | . . . . . 3 8 . . . . . . . . . . . . . Recycling Units 25 | . 2 . . . . . 8 . 6 . . . 2 . . . 2 . 5 Scanalyzers . | . . . . . . . . . . . . . . . . . . . . Garrison Access 8 | . . . . . . 2 . . 3 . . . . . . . . . 3 Terminal Hacks 52 | . 7 . 1 . 5 8 1 21 2 1 . . 1 . . . 1 4 . Record 17 | . . . 1 . . . . 16 . . . . . . . . . . . Part Schematic 3 | . . . . . . 1 1 . 1 . . . . . . . . . . Robot Analysis 9 | . 2 . . . 2 . . 5 . . . . . . . . . . . Prototype ID Bank 6 | . 1 . . . 1 1 . . . . . . 1 . . . . 2 . Open Door 1 | . . . . . . . . . . 1 . . . . . . . . . Level Access Points 1 | . . . . . . . . . . . . . . . . . . 1 . Branch Access Points 3 | . . . . . 1 1 . . . . . . . . . . 1 . . Terminal Index 1 | . 1 . . . . . . . . . . . . . . . . . . Garrison Index 1 | . . . . . . . . . 1 . . . . . . . . . . Unreport Threat 1 | . . . . . . . . . . . . . . . . . . 1 . Locate Traps 7 | . 3 . . . 1 3 . . . . . . . . . . . . . Recall Reinforcements 1 | . . . . . . 1 . . . . . . . . . . . . . Hauler Manifests 1 | . . . . . . 1 . . . . . . . . . . . . . Fabricator Hacks 4 | . . . . . . . . . 2 . . . 2 . . . . . . Load Schematic 1 | . . . . . . . . . . . . . 1 . . . . . . Build 3 | . . . . . . . . . 2 . . . 1 . . . . . . Repair Station Hacks 9 | . . . . . 1 8 . . . . . . . . . . . . . Scan Component 5 | . . . . . 1 4 . . . . . . . . . . . . . Repair 4 | . . . . . . 4 . . . . . . . . . . . . . Recycling Unit Hacks . | . . . . . . . . . . . . . . . . . . . . Scanalyzer . | . . . . . . . . . . . . . . . . . . . . Garrison Access Hacks . | . . . . . . . . . . . . . . . . . . . . Unauthorized Hacks 38 | . 5 . . . 5 2 9 . 7 . . . 3 . . . 2 . 5 Terminals 18 | . 3 . . . 5 2 2 . 3 . . . 1 . . . . . 2 Track 1 | . . . . . . . . . . . . . . . . . . . 1 Botnet 17 | . 3 . . . 5 2 2 . 3 . . . 1 . . . . . 1 Fabricators . | . . . . . . . . . . . . . . . . . . . . Repair Stations . | . . . . . . . . . . . . . . . . . . . . Recycling Units 20 | . 2 . . . . . 7 . 4 . . . 2 . . . 2 . 3 Tunnel 9 | . 2 . . . . . 7 . . . . . . . . . . . . Fedlink 9 | . . . . . . . . . 4 . . . 1 . . . 1 . 3 Scrapoids 2 | . . . . . . . . . . . . . 1 . . . 1 . . Scanalyzers . | . . . . . . . . . . . . . . . . . . . . Garrison Access . | . . . . . . . . . . . . . . . . . . . . Data Cores Recovered 3 | . 1 . . . 1 1 . . . . . . . . . . . . . Used 1 | . . . . . . 1 . . . . . . . . . . . . . Hacking Detections 67 | . 7 . . . 9 10 7 . 11 . . . 4 . . . 4 4 11 Full Trace Events 8 | . . . . . . 1 1 . 1 . . . 1 . . . 2 . 2 Feedback Events . | . . . . . . . . . . . . . . . . . . . . Feedback Blocked . | . . . . . . . . . . . . . . . . . . . . Robot Schematics Acquired 4 | . . . . . . . . . . . 4 . . . . . . . . Robots Built . | . . . . . . . . . . . . . . . . . . . . Authchips . | . . . . . . . . . . . . . . . . . . . . Time . | . . . . . . . . . . . . . . . . . . . . Total Robot Build Rating . | . . . . . . . . . . . . . . . . . . . . Part Schematics Acquired 17 | . . . . . . 1 1 . 1 . 14 . . . . . . . . Parts Built 6 | . . . . . . . . . 4 . . . 2 . . . . . . Authchips . | . . . . . . . . . . . . . . . . . . . . Time 147 | . . . . . . . . . 100 . . . 47 . . . . . . Total Part Build Rating 32 | . . . . . . . . . 22 . . . 10 . . . . . . Parts Repaired 4 | . . . . . . 4 . . . . . . . . . . . . . Time 158 | . . . . . . 158 . . . . . . . . . . . . . Parts Recycled . | . . . . . . . . . . . . . . . . . . . . Recycled Matter . | . . . . . . . . . . . . . . . . . . . . Retrieved Matter . | . . . . . . . . . . . . . . . . . . . . Retrieved Components . | . . . . . . . . . . . . . . . . . . . . Parts Scanalyzed . | . . . . . . . . . . . . . . . . . . . . Part Schematics Acquired . | . . . . . . . . . . . . . . . . . . . . Parts Damaged . | . . . . . . . . . . . . . . . . . . . . Bothacking | -11 -10 -10 -10 -9 -8 -8 -8 -8 -6 -6 -6 -5 -5 -5 -5 -4 -3 -3 -3 ------------ Run | Yrd Mat Min Exi Min Mat Sto Rec Scr Fac Low Zio Pro Fac Upp Upp Fac Res Qua Frg Used RIF Installer . | . . . . . . . . . . . . . . . . . . . . Robots Hacked 6 | . . . 4 . . . . 2 . . . . . . . . . . . Non-combat 4 | . . . 3 . . . . 1 . . . . . . . . . . . Combat 2 | . . . 1 . . . . 1 . . . . . . . . . . . Robot Hacks Applied 6 | . . . 4 . . . . 2 . . . . . . . . . . . parse_system 6 | . . . 4 . . . . 2 . . . . . . . . . . . Relay Couplers Released 3 | . . . . . 2 . . . 1 . . . . . . . . . . Machine Destruction 3 | . . . . . 2 . . . 1 . . . . . . . . . . Fabnet Peak Effective % . | . . . . . . . . . . . . . . . . . . . . Robots Rewired 7 | . . . . . . . 5 . . . . 1 . 1 . . . . . Allies Hacked 1 | . . . . . . . . . 1 . . . . . . . . . . Hacks Repelled . | . . . . . . . . . . . . . . . . . . . . Allies | -11 -10 -10 -10 -9 -8 -8 -8 -8 -6 -6 -6 -5 -5 -5 -5 -4 -3 -3 -3 -------- Run | Yrd Mat Min Exi Min Mat Sto Rec Scr Fac Low Zio Pro Fac Upp Upp Fac Res Qua Frg Total Allies 35 | . . 3 . . . 10 5 . 5 . . 1 5 1 . . 5 . . Largest Group 11 | . . 3 3 3 3 10 11 11 11 2 . 1 5 1 1 1 5 . . Highest-Rated Group 323 | . . 40 40 40 40 173 200 196 256 94 . 49 238 41 41 41 323 . . Highest-Rated Ally 67 | . . 16 16 16 16 29 29 27 47 47 . 49 50 41 41 41 67 . . Total Orders 4 | . . . . . . . 3 1 . . . . . . . . . . . STAY 3 | . . . . . . . 2 1 . . . . . . . . . . . FOLLOW 1 | . . . . . . . 1 . . . . . . . . . . . . Ally Attacks 391 | . . . . 28 18 27 21 . 179 7 . 2 51 . . 1 57 . . Total Damage 8772 | . . . . 275 219 362 253 . 4079 147 . 23 1494 . . 18 1902 . . Kills 71 | . . . . 5 4 2 3 . 32 3 . . 9 . . . 13 . . Allies Corrupted 1 | . . . . . . . . . . . . . 1 . . . . . . Allies Melted 5 | . . . . . . . . . . . . . . . . . . . 5 Intel | -11 -10 -10 -10 -9 -8 -8 -8 -8 -6 -6 -6 -5 -5 -5 -5 -4 -3 -3 -3 ------- Run | Yrd Mat Min Exi Min Mat Sto Rec Scr Fac Low Zio Pro Fac Upp Upp Fac Res Qua Frg Active Infowar (turns) 26192 | . 356 . . . . . . 485 1765 1895 1499 274 321 649 39 118 301 196 18294 Optics 22448 | . . . . . . . . . 224 1895 1499 170 . . . . 170 196 18294 Sensors 19682 | . . . . . . . . 485 1765 1769 1499 162 321 436 39 97 286 196 12627 Seismic 981 | . 356 . . . . . . . . . . . . 459 39 118 9 . . Jamming 19 | . . . . . . . . . . . . . . . . . . 19 . ECM 200 | . . . . . . . . . . . . . . 1 . . 26 6 167 Robot Analysis Total 9 | . 2 . . . 2 . . 5 . . . . . . . . . . . Derelict Logs Recovered 8 | . . 1 . 1 . . . . . 2 1 . . 2 1 . . . . Drone Launches . | . . . . . . . . . . . . . . . . . . . . Drone Recoveries . | . . . . . . . . . . . . . . . . . . . . Exploration | -11 -10 -10 -10 -9 -8 -8 -8 -8 -6 -6 -6 -5 -5 -5 -5 -4 -3 -3 -3 ------------- Run | Yrd Mat Min Exi Min Mat Sto Rec Scr Fac Low Zio Pro Fac Upp Upp Fac Res Qua Frg Turns Passed 39225 | 2 1188 1122 405 963 2114 1390 1498 4428 2193 1895 1499 288 565 649 39 118 301 196 18372 Spaces Moved 20747 | 1 677 649 245 547 1104 622 910 2355 1272 1158 972 273 934 1158 60 153 887 554 6216 Core 728 | . . . . . . . . 132 . . . 207 385 1 . . . . 3 Treads 10128 | . 360 649 245 547 1104 622 910 2223 1272 1158 972 66 . . . . . . . Legs 318 | 1 317 . . . . . . . . . . . . . . . . . . Wheels . | . . . . . . . . . . . . . . . . . . . . Hover 4855 | . . . . . . . . . . . . . . . . . . . 4855 Flight 4718 | . . . . . . . . . . . . . 549 1157 60 153 887 554 1358 Fastest Speed 12 | 120 120 160 160 160 145 145 150 50 145 148 152 50 26 26 29 29 25 21 12 Average Speed 96 | 120 141 160 160 160 150 150 150 181 147 150 152 77 45 28 29 29 25 23 31 Slowest Speed 240 | 120 190 160 160 160 240 230 150 230 228 152 152 230 195 200 29 29 108 32 150 Overloaded Moves 92 | . . . . . . . . . . . . . . . . . . . 92 Propulsion Burnouts . | . . . . . . . . . . . . . . . . . . . . Robots Hopped 36 | . . . . . . . . . . 1 . . 2 1 . . 8 7 17 Potential Cave-ins 64 | . . . . . . . . . . . . . 6 . . . . . 58 Cave-ins Triggered 1 | . . . . . . . . . . . . . 1 . . . . . . Exploration Rate (%) 63 | 1 98 99 65 91 74 97 99 90 41 87 89 55 22 92 9 4 29 66 62 Regions Visited 19 Branch Regions 13 Pre-discovered Areas 16 | . 2 1 1 . . . 7 3 1 . 1 . . . . . . . . Known Exits Taken 11 | . . . . . 1 1 . 1 1 . . 1 1 1 1 1 1 1 . Unknown Exits Taken 8 | 1 1 1 1 1 . . 1 . . 1 1 . . . . . . . . Scrap Searched 21 | . . 1 . 2 . . . 6 . 8 3 . . 1 . . . . . Spaces Dug 59 | . . . . . 4 . . . 2 7 . 2 12 5 . 4 9 2 12 Terrain Destroyed 263 | . 16 . . . 77 56 . . 4 29 . 21 12 5 . 4 9 2 28 Melee 48 | . . . . . 4 . . . . . . 2 10 5 . 4 9 2 12 Projectile 31 | . . . . . 1 . . . 4 6 . 2 2 . . . . . 16 AOE 184 | . 16 . . . 72 56 . . . 23 . 17 . . . . . . . Terrain Rammed . | . . . . . . . . . . . . . . . . . . . . Walls Destroyed . | . . . . . . . . . . . . . . . . . . . . Machines Disabled . | . . . . . . . . . . . . . . . . . . . . Actions | -11 -10 -10 -10 -9 -8 -8 -8 -8 -6 -6 -6 -5 -5 -5 -5 -4 -3 -3 -3 --------- Run | Yrd Mat Min Exi Min Mat Sto Rec Scr Fac Low Zio Pro Fac Upp Upp Fac Res Qua Frg Total 38964 | 1 787 716 256 583 1352 940 1032 2516 1482 1258 988 323 1031 1469 80 200 926 598 22426 Wait 16850 | . 18 55 . . 33 206 53 77 95 37 . 11 41 255 21 29 9 6 15904 Move 20662 | . 676 648 244 546 1103 621 909 2354 1271 1155 971 272 928 1155 59 152 871 539 6188 Hop 29 | . . . . . . . . . . 1 . . 2 1 . . 7 7 11 Pick Up 149 | . 8 1 4 1 23 8 . 29 13 8 3 2 4 12 . 1 3 4 25 Fast Attach 98 | . 4 . . . 14 5 2 13 6 1 1 1 6 1 . 2 9 13 20 Attach 74 | . 4 . . . 8 1 . 7 8 . . 8 8 4 . 2 1 5 18 Detach 51 | . 3 . . . 7 . . 4 3 1 . 2 6 3 . 1 1 6 14 Swap 85 | 1 3 . 2 5 20 12 . 4 10 14 2 1 . . . 1 2 . 8 Drop 160 | . 3 . 2 2 26 11 2 26 16 9 7 4 1 12 . . 7 10 22 Fire 444 | . 62 7 . 20 98 67 5 . 58 30 4 13 22 . . . . . 58 Melee 146 | . . . 4 5 6 . . 2 . . . 2 12 7 . 12 16 8 72 Ram 3 | . . . . . . . . . . . . . . . . . . . 3 Kick 3 | . 3 . . . . . . . . . . . . . . . . . . Crush 31 | . 3 5 . 4 5 8 4 . 2 . . . . . . . . . . Escape Stasis 14 | . . . . . . . . . . . . . 1 . . . . . 13 Rewire 75 | . . . . . . 1 57 . . . . 7 . 10 . . . . . Trap 20 | . . . . . 9 . . . . 2 . . . 9 . . . . . Miscellaneous 70 | . . . . . . . . . . . . . . . . . . . 70 Route ------- -11/Scrapyard -10/Materials (discovered 4 exits: [*Mat x3] / [*Min]) -10/Mines (discovered 4 exits: [*Mat x2] / *Exi / [*Sub]) -10/Exiles -9/Mines (discovered 2 exits: *Mat x2) -8/Materials (discovered 3 exits: [*Fac x2] / *Sto) -8/Storage (discovered 2 exits: [*Fac] / *Rec) -8/Recycling (discovered 2 exits: *Fac / *Scr) -8/Scraptown (discovered 2 exits: *Fac x2) -6/Factory (discovered 4 exits: *Fac x3 / *Low) -6/Lower Caves (discovered 2 exits: Low / [*Zio]) -6/Zion -5/Proximity Caves -5/Factory (discovered 2 exits: *Upp x2) -5/Upper Caves -5/Upper Caves (discovered 2 exits: *Fac / War) -4/Factory (discovered 2 exits: *Res / Arm) -3/Research (discovered 3 exits: *Res / *Qua x2) -3/Quarantine (discovered 3 exits: *Res / *Sec / *Frg) -3/Protoforge (discovered 1 exit: *Res) History --------- Turn | Location | Event 3 | -11/Scrapyard | Discovered new exit (range 0) 3 | -11/Scrapyard | Entered Materials 156 | -10/Materials | Discovered new exit (range 9) 322 | -10/Materials | Build established: Mutant 324 | -10/Materials | Discovered new exit (range 5) 595 | -10/Materials | Discovered new exit (range 10) 606 | -10/Materials | Discovered new exit (range 16) 1003 | -10/Materials | Derelicts attacked the area 1191 | -10/Materials | Entered Mines 1217 | -10/Mines | Learned Materials trap positions 1262 | -10/Mines | Met a Derelict bent on vengeance 1306 | -10/Mines | Assembled infested the area 1479 | -10/Mines | Discovered new exit (range 5) 1493 | -10/Mines | Assisted by bots powering up and referring to "LRC-V3" 1520 | -10/Mines | Discovered new exit (range 9) 1748 | -10/Mines | Received a Rocket Launcher from a helpful Derelict 2025 | -10/Mines | Discovered new exit (range 11) 2184 | -10/Mines | Discovered new exit (range 5) 2223 | -10/Mines | Learned location of Storage (-8) 2313 | -10/Mines | Entered Exiles 2313 | -10/Exiles | Accompanied by 3 allies 2375 | -10/Exiles | Met 8R-AWN 2405 | -10/Exiles | Met EX-HEX 2449 | -10/Exiles | Met EX-BIN 2517 | -10/Exiles | Met EX-DEC 2526 | -10/Exiles | Learned location of Zion (-6) 2695 | -10/Exiles | Discovered new exit (range 14) 2718 | -10/Exiles | Entered Mines 2718 | -9/Mines | Accompanied by 3 allies 2756 | -9/Mines | Discovered new exit (range 4) 2856 | -9/Mines | Found a hidden stash of uninstalled traps 2930 | -9/Mines | Learned Materials security intel 3087 | -9/Mines | Discovered new exit (range 8) 3235 | -9/Mines | Excavation squad dispatched 3235 | -9/Mines | A large section of the Mines collapsed 3268 | -9/Mines | Core integrity fell below 50% 3681 | -9/Mines | Entered Materials 3681 | -8/Materials | Accompanied by 3 allies 3681 | -8/Materials | Evolved 4 slots: Propulsion x1, Utility x2, Weapon x1 3682 | -8/Materials | Loaded intel: 16 trap records 4352 | -8/Materials | Discovered new exit (range 10) 4720 | -8/Materials | Build established: Tank 4800 | -8/Materials | Discovered new exit (range 8) 5259 | -8/Materials | Destroyed 13 combat bots 5281 | -8/Materials | First assault squad dispatched 5775 | -8/Materials | Identified exit to Storage 5795 | -8/Materials | Entered Storage 5808 | -8/Storage | Build established: Gunner 5826 | -8/Storage | Identified exit to Recycling 6017 | -8/Storage | Garrison activated, responded to threat 6255 | -8/Storage | Repaired Adv. Treads 6420 | -8/Storage | Core integrity fell below 50% 6722 | -8/Storage | Assisted by bots powering up and referring to "LRC-V3" 6815 | -8/Storage | Repaired Adv. Treads 6861 | -8/Storage | Repaired Imp. Cooling System 6900 | -8/Storage | Repaired Adv. Treads 6997 | -8/Storage | Met 01-MTF 7035 | -8/Storage | Build established: Commander-Gunner 7049 | -8/Storage | Discovered new exit (range 15) 7185 | -8/Storage | Entered Recycling 7185 | -8/Recycling | Accompanied by 11 allies (01-MTF) 7186 | -8/Recycling | Met a Zionite searching for Scraptown 7633 | -8/Recycling | Discovered new exit (range 16) 8253 | -8/Recycling | Scanned before Scraplab entrance 8387 | -8/Recycling | Entered Scraplab 8398 | -8/Recycling | Lost 3 allies 8399 | -8/Recycling | Discovered new exit (range 3) 8683 | -8/Recycling | Entered Scraptown 8683 | -8/Scraptown | Accompanied by 11 allies 8683 | -8/Scraptown | System corruption cleaned by C-Scrubber 9031 | -8/Scraptown | Discovered new exit (range 11) 9108 | -8/Scraptown | Heard Great Nut preacher, LISTEN AND RECITE! 9178 | -8/Scraptown | Visited Red Mages 9235 | -8/Scraptown | Visited Fellowship of the Rings 9285 | -8/Scraptown | Visited The Evicted 9303 | -8/Scraptown | Visited Cyclists 9342 | -8/Scraptown | Visited Assassins FH 9354 | -8/Scraptown | Visited Cave Peace 9423 | -8/Scraptown | Visited Awakened 9576 | -8/Scraptown | Visited UFD Registry 9576 | -8/Scraptown | Registered with UFD as "Steelframe" 9718 | -8/Scraptown | Discovered new exit (range 3) 9793 | -8/Scraptown | Visited Supply Room 9825 | -8/Scraptown | Visited Observation Area 9858 | -8/Scraptown | Visited Cartography Club 9911 | -8/Scraptown | Learned location of Upper Caves (-5) 9911 | -8/Scraptown | Learned location of Testing (-2) 9911 | -8/Scraptown | Learned 8 Materials zone layouts 9911 | -8/Scraptown | Learned 8 Factory zone layouts 9911 | -8/Scraptown | Learned 8 Research zone layouts 9911 | -8/Scraptown | Learned 16 Research zone layouts 9911 | -8/Scraptown | Learned 12 Lower Caves zone layouts 9911 | -8/Scraptown | Learned 8 Upper Caves zone layouts 9911 | -8/Scraptown | Learned 16 Upper Caves zone layouts 9911 | -8/Scraptown | Learned 20 Proximity Caves zone layouts 9911 | -8/Scraptown | Learned location of 1 exit from Factory 9911 | -8/Scraptown | Learned location of 1 exit from Proximity Caves 10105 | -8/Scraptown | Visited Research Penetration Think Tank 10153 | -8/Scraptown | Visited Analyses Database 10294 | -8/Scraptown | Visited Scrapoid Pod Storage 10306 | -8/Scraptown | Found Scrapoid Pod 10346 | -8/Scraptown | Visited Infowarlord's Domain 10388 | -8/Scraptown | Visited Junk Repository 10452 | -8/Scraptown | Visited Derelict Rescue Squad 10471 | -8/Scraptown | Found DRS Beacon 11173 | -8/Scraptown | Visited LU-1G1's Boring Crew 12083 | -8/Scraptown | Build established: Commander-Mutant 12586 | -8/Scraptown | Found Exp. Sensor Array 12793 | -8/Scraptown | Entered Cyclist Reading Room 12913 | -8/Scraptown | Build established: Commander-Skirmisher 13028 | -8/Scraptown | Met Optimus 13028 | -8/Scraptown | Accepted into 0bPrime 13109 | -8/Scraptown | Identified exit to Factory 13111 | -8/Scraptown | Entered Factory 13111 | -6/Factory | Accompanied by 11 allies 13111 | -6/Factory | Evolved 4 slots: Propulsion x1, Utility x2, Weapon x1 13112 | -6/Factory | Identified exit to Lower Caves 13113 | -6/Factory | Identified exit to Factory 13193 | -6/Factory | Loaded intel: 8 recycling unit locations 13294 | -6/Factory | Lost 5 allies 13420 | -6/Factory | Build established: Commander-Tank 13484 | -6/Factory | Learned location of Protoforge (-3) 13747 | -6/Factory | Fabricated Hvy. Machine Gun (x2) 13946 | -6/Factory | Scrapoid Pod released 06F05-D (x5) 14052 | -6/Factory | Build established: Tank 14224 | -6/Factory | Discovered exit to Factory (range 15) 14424 | -6/Factory | Fabricated Neutrino Core (x2) 14920 | -6/Factory | Garrison activated, responded to threat 15211 | -6/Factory | First assault squad dispatched 15304 | -6/Factory | Entered Lower Caves 15304 | -6/Lower Caves | Accompanied by 2 allies 15305 | -6/Lower Caves | Identified exit to Lower Caves 15488 | -6/Lower Caves | Entered a destroyed Warlord outpost 15646 | -6/Lower Caves | Encountered a Warlord checkpoint 15666 | -6/Lower Caves | Build established: Skirmisher 15814 | -6/Lower Caves | A Derelict revealed a hidden shortcut to a safe place 16460 | -6/Lower Caves | Learned Factory garrison access intel 16559 | -6/Lower Caves | Attracted the attention of an 0b10 checkpoint 16704 | -6/Lower Caves | Learned Factory stockpile data 17199 | -6/Lower Caves | Entered Zion 17280 | -6/Zion | Discovered new exit (range 10) 17610 | -6/Zion | Given A8's code to call for help 17834 | -6/Zion | Found Prototype Energy Gun 17834 | -6/Zion | Identified Storm Laser 17961 | -6/Zion | Received a visual enhancement algorithm 18036 | -6/Zion | Found CR-A16's Pointy Stick 18203 | -6/Zion | Turned away by Imprinter 18698 | -6/Zion | Entered Proximity Caves 18704 | -5/Proximity Caves | Attracted the attention of an 0b10 outpost 18758 | -5/Proximity Caves | Lost 3 parts (1u2w) 18868 | -5/Proximity Caves | Released all parts (9) 18896 | -5/Proximity Caves | Lost 3 parts (1p1n1u) 18986 | -5/Proximity Caves | Entered Factory 18986 | -5/Factory | Evolved 2 slots: Propulsion x2 18987 | -5/Factory | Identified exit to Upper Caves 18989 | -5/Factory | Loaded intel: 4 garrison access locations 19139 | -5/Factory | Build established: Mutant 19156 | -5/Factory | Crushed by falling debris 19349 | -5/Factory | Scrapoids reinforcements arrived? 19444 | -5/Factory | Loaded intel: 7 recycling unit locations 19546 | -5/Factory | Fabricated Enh. Optical Array? 19551 | -5/Factory | Entered Upper Caves 19552 | -5/Upper Caves | Identified exit to Upper Caves 19709 | -5/Upper Caves | Build established: Scavenger-Sprinter 19764 | -5/Upper Caves | Learned Factory emergency access door positions 20124 | -5/Upper Caves | Learned 8 Factory zone layouts 20200 | -5/Upper Caves | Entered another Upper Caves area 20200 | -5/Upper Caves | Accompanied by 1 ally 20201 | -5/Upper Caves | Identified exit to Warlord 20201 | -5/Upper Caves | Identified exit to Factory 20202 | -5/Upper Caves | Learned 4 Factory zone layouts 20239 | -5/Upper Caves | Entered Factory 20239 | -4/Factory | Accompanied by 1 ally 20239 | -4/Factory | Evolved 2 slots: Power x1, Utility x1 20240 | -4/Factory | Identified exit to Armory 20351 | -4/Factory | Discovered new exit (range 10) 20356 | -4/Factory | Identified exit to Research 20357 | -4/Factory | Entered Research 20357 | -3/Research | Evolved 2 slots: Propulsion x1, Utility x1 20358 | -3/Research | Identified exit to Research 20382 | -3/Research | Loaded intel: 5 recycling unit locations 20515 | -3/Research | Scrapoids reinforcements arrived? 20558 | -3/Research | Garrison activated, responded to threat 20585 | -3/Research | Spotted B-86 Titan 20638 | -3/Research | Identified exit to Quarantine 20658 | -3/Research | Entered Quarantine 20725 | -3/Quarantine | Found Alien Artifact 20732 | -3/Quarantine | Found Alien Artifact 20746 | -3/Quarantine | Found Alien Artifact 20746 | -3/Quarantine | Identified Subatomic Replicator 20750 | -3/Quarantine | Used Subatomic Replicator to replicate Cld. Nuclear Pulse Thruster 20772 | -3/Quarantine | Found Prototype Device 20772 | -3/Quarantine | Identified Exp. Thermal Defense Suite 20783 | -3/Quarantine | Garrison activated, responded to threat 20829 | -3/Quarantine | Central database locked down 20838 | -3/Quarantine | Spotted Fortress 20852 | -3/Quarantine | Discovered new exit (range 6) 20852 | -3/Quarantine | Discovered new exit (range 6) 20853 | -3/Quarantine | Identified exit to Section 7 20854 | -3/Quarantine | Identified exit to Protoforge 20854 | -3/Quarantine | Entered Protoforge 20872 | -3/Protoforge | Superfortress began startup sequence 20876 | -3/Protoforge | Spotted Hotshot 20876 | -3/Protoforge | Spotted Hotshot 20914 | -3/Protoforge | Build established: Hacker-Ninja 20946 | -3/Protoforge | Discovered exit to Research (range 19) 20965 | -3/Protoforge | Spotted Hotshot 20966 | -3/Protoforge | Spotted Hotshot 20972 | -3/Protoforge | Spotted Hotshot 20973 | -3/Protoforge | Spotted Hotshot 20979 | -3/Protoforge | Identified Terrabomb (x2) 20979 | -3/Protoforge | Used Terrabomb 20979 | -3/Protoforge | Additional patrols dispatched to research labs 20983 | -3/Protoforge | Spotted Decapitator 20983 | -3/Protoforge | Spotted Decapitator 21021 | -3/Protoforge | Lost 5 parts (1p3n1w) 21022 | -3/Protoforge | Destroyed Decapitator 21032 | -3/Protoforge | Found Prototype Slashing Weapon 21060 | -3/Protoforge | UFD initiated attack on Protoforge 21060 | -3/Protoforge | Loaded intel: 3 recycling unit locations 21087 | -3/Protoforge | Spotted EXE-6 21091 | -3/Protoforge | Found Prototype Ballistic Gun 21095 | -3/Protoforge | Found Prototype Device 21095 | -3/Protoforge | Identified Exp. Kinecellerator 21096 | -3/Protoforge | Optimus greeted in Protoforge 21099 | -3/Protoforge | Identified Exp. Terror Saw 21102 | -3/Protoforge | Found Prototype Processor 21102 | -3/Protoforge | Identified Exp. Armor Integrity Analyzer 21169 | -3/Protoforge | Spotted EXE-6 21170 | -3/Protoforge | Spotted EXE-6 21209 | -3/Protoforge | Identified Cep. XC Strikerail 21209 | -3/Protoforge | Forge Plexus network access discovered 21216 | -3/Protoforge | Met 7R-MNS 21324 | -3/Protoforge | Spotted Executioner 21324 | -3/Protoforge | Spotted Striker 21373 | -3/Protoforge | Spotted AP7-3 21375 | -3/Protoforge | Spotted Striker 21409 | -3/Protoforge | Spotted AP7-3 21415 | -3/Protoforge | Lost 3 allies 21464 | -3/Protoforge | Found 0bPrime Scrap Suit 21488 | -3/Protoforge | Found UFD Drillbomb 21509 | -3/Protoforge | Spotted Striker 21511 | -3/Protoforge | Spotted Executioner 21575 | -3/Protoforge | Spotted Striker 21580 | -3/Protoforge | Lost 10 allies 21582 | -3/Protoforge | Used Terrabomb 21582 | -3/Protoforge | Spotted Striker 21597 | -3/Protoforge | Spotted Executioner 21617 | -3/Protoforge | Spotted Striker 21618 | -3/Protoforge | Spotted Executioner 21652 | -3/Protoforge | Lost 7 allies 21974 | -3/Protoforge | Build established: Scavenger-Scout 22018 | -3/Protoforge | Spotted Striker 22031 | -3/Protoforge | Spotted Striker 22089 | -3/Protoforge | Spotted B-86 Titan 22095 | -3/Protoforge | Spotted Executioner 22118 | -3/Protoforge | Spotted Executioner 22123 | -3/Protoforge | Destroyed Executioner 22807 | -3/Protoforge | Spotted Executioner 22808 | -3/Protoforge | Spotted Executioner 23741 | -3/Protoforge | P-80 Master assimilated allied DX-RZP(E) 23741 | -3/Protoforge | Spotted Executioner 23742 | -3/Protoforge | P-80 Master assimilated allied 03FDQ-D 23779 | -3/Protoforge | Lost 3 allies 24585 | -3/Protoforge | Spotted Executioner 24614 | -3/Protoforge | Lost 3 allies 26101 | -3/Protoforge | UFD reported confirmed Drillbomb installation 26410 | -3/Protoforge | Spotted Striker 26520 | -3/Protoforge | UFD reported confirmed Drillbomb installation 26521 | -3/Protoforge | Installed UFD Drillbomb at designated target 26521 | -3/Protoforge | UFD reported confirmed Drillbomb installation 26523 | -3/Protoforge | Found UFD Drillbomb 26587 | -3/Protoforge | Installed UFD Drillbomb at designated target 26587 | -3/Protoforge | UFD reported confirmed Drillbomb installation 26787 | -3/Protoforge | Spotted Executioner 26798 | -3/Protoforge | Spotted Executioner 26889 | -3/Protoforge | Found UFD Drillbomb 26906 | -3/Protoforge | Spotted Executioner 26944 | -3/Protoforge | Spotted Executioner 26961 | -3/Protoforge | Installed UFD Drillbomb at designated target 26961 | -3/Protoforge | UFD reported confirmed Drillbomb installation 26984 | -3/Protoforge | Spotted Executioner 26986 | -3/Protoforge | Found UFD Drillbomb 27051 | -3/Protoforge | Spotted Executioner 27057 | -3/Protoforge | Spotted Executioner 27064 | -3/Protoforge | Spotted Striker 27072 | -3/Protoforge | Spotted Striker 28215 | -3/Protoforge | Spotted Striker 28230 | -3/Protoforge | Destroyed Striker 28248 | -3/Protoforge | Spotted Striker 28251 | -3/Protoforge | Spotted Striker 28287 | -3/Protoforge | Lost 3 allies 28304 | -3/Protoforge | Installed UFD Drillbomb at designated target 28304 | -3/Protoforge | UFD reported confirmed Drillbomb installation 28346 | -3/Protoforge | Found UFD Drillbomb 28368 | -3/Protoforge | Destroyed Hotshot 28381 | -3/Protoforge | Spotted Executioner 28394 | -3/Protoforge | Spotted Striker 28396 | -3/Protoforge | Spotted Striker 28397 | -3/Protoforge | Spotted Striker 28417 | -3/Protoforge | Spotted Striker 28443 | -3/Protoforge | Installed UFD Drillbomb at designated target 28443 | -3/Protoforge | UFD reported confirmed Drillbomb installation 28449 | -3/Protoforge | Spotted Striker 28452 | -3/Protoforge | Spotted Executioner 28455 | -3/Protoforge | Lost 6 allies 28467 | -3/Protoforge | Spotted Striker 28500 | -3/Protoforge | Spotted Executioner 28541 | -3/Protoforge | Lost 10 allies 28759 | -3/Protoforge | Build established: Scavenger-Sprinter 28831 | -3/Protoforge | Spotted Striker 28884 | -3/Protoforge | Destroyed 8 combat bots 28938 | -3/Protoforge | Spotted Executioner 28941 | -3/Protoforge | Spotted Striker 28956 | -3/Protoforge | Spotted Striker 28967 | -3/Protoforge | Spotted Striker 28993 | -3/Protoforge | Spotted Striker 28997 | -3/Protoforge | Spotted Striker 29031 | -3/Protoforge | Spotted Striker 29034 | -3/Protoforge | Spotted Executioner 29073 | -3/Protoforge | Lost 12 allies 29792 | -3/Protoforge | Spotted Executioner 29797 | -3/Protoforge | Spotted Executioner 29799 | -3/Protoforge | Spotted Executioner 29834 | -3/Protoforge | Lost 8 allies 30397 | -3/Protoforge | Spotted Executioner 30496 | -3/Protoforge | Found UFD Drillbomb 30519 | -3/Protoforge | P-80 Master assimilated allied NQ-W5F(E) 30523 | -3/Protoforge | P-80 Master assimilated allied 03FVE-D 30538 | -3/Protoforge | Spotted Executioner 30843 | -3/Protoforge | Build established: Scavenger-Scout 31652 | -3/Protoforge | UFD reported confirmed Drillbomb installation 32680 | -3/Protoforge | Spotted 03F79-K 32681 | -3/Protoforge | Spotted Executioner 34584 | -3/Protoforge | Found UFD Drillbomb 34588 | -3/Protoforge | Spotted Striker 34588 | -3/Protoforge | Spotted Striker 34592 | -3/Protoforge | Spotted Striker 34634 | -3/Protoforge | Lost 4 allies 34898 | -3/Protoforge | Build established: Scavenger-Sprinter 37691 | -3/Protoforge | Spotted Striker 37713 | -3/Protoforge | Spotted Executioner 37994 | -3/Protoforge | Build established: Scavenger-Scout 38067 | -3/Protoforge | Spotted Striker 38071 | -3/Protoforge | Spotted Striker 38110 | -3/Protoforge | Lost 3 allies 39104 | -3/Protoforge | Spotted Executioner 39120 | -3/Protoforge | Spotted Executioner 39136 | -3/Protoforge | Lost 4 allies 39146 | -3/Protoforge | Spotted Striker 39153 | -3/Protoforge | Spotted Executioner 39183 | -3/Protoforge | Installed UFD Drillbomb at designated target 39183 | -3/Protoforge | UFD reported confirmed Drillbomb installation 39196 | -3/Protoforge | Spotted Immortal 39196 | -3/Protoforge | Spotted Immortal 39209 | -3/Protoforge | Installed UFD Drillbomb at designated target 39209 | -3/Protoforge | UFD reported confirmed Drillbomb installation 39210 | -3/Protoforge | UFD began Drillbomb countdown 39211 | -3/Protoforge | Core integrity fell below 50% 39223 | -3/Protoforge | Core integrity fell below 20% 39223 | -3/Protoforge | Spotted Executioner 39226 | -3/Protoforge | Destroyed by Executioner with Helical Railgun Last Messages --------------- 39212_ Critical hit (Impale). 39212_ Enh. Force Lance destroyed. 39213_ Critical hit (Impale). 39215_ 0bP_NET: IMPORTANT! Anyone southwest of the demarcation line will be blasted to scrap. For your own safety get away from there! 39216_ Critical hit (Impale). 39218_ Gravjet Array destroyed. 39218_ Exp. Terror Saw destroyed. 39220_ 0bP_NET: Any of you short on time and closer to the 0b10 access point may consider sneaking back through 0b10 that way. 39220_ Critical hit (Impale). 39221_ Lgt. Antimatter Reactor destroyed. 39221_ Gravjet Array destroyed. 39221_ Slammed into Immortal. 39222_ 0bP_NET: Beware, MC appears to be massing forces in areas on the other side, survival in 0b10 could become extremely difficult. 39222_ Critical hit (Impale). 39222_ Gravjet Array destroyed. 39222_ Critical hit (Impale). 39225_ Slammed into Immortal. Map ----- +----------------------------------------------------+ | ????????????## ###+####### | | ??????????#### # # | | ??????????######### % # """ # | | ??????????##??????# # # | | ??????????##??????+ + """ # | | ??????????##??????# ^ #### # # | | ??????????##??????## #### # """ # | | ??????????##??????## #### # # | | ??????????##??????## #### ####### | | ??????????########## #### ## ## | | ??????????########## #### " ## | | ??????????????????## ####### ## | | ??????????????????## ######## ### | | ??????????????????## ##???### ### | | ??????????????????## ##????## ##? | | ??????????????###### ##????## ##? | | ??????????????######+##+##???### ### | | ??????????????## ##???### ### | | ??????????????## """ ""##???## # | | ??????????????## """ ""##???## " + | | ??????????????## """ ""##???## # | | ############??## T##???### ### | | ################ """ ""##???### ### | | ## ??###### """ ""##????## ### | | ## gg #%K ; """ ""##????## ### | | ## g ;@lg # ######## ### | | ## #l< ###+############# ### | | ## ??+ E | | ## ????# E | | ## ??????# C " | | ##????????# %" | | ##????????# ###+############# | | #####?##### #?????????####### | | #####?##### #?????????##???## | | #####?##### #?????????##???## | | #?????????# ^#?????????##???## | | #?????????# +?????????##???## ! | | #?????????# #?????????##???## !! | | #?????????# #?????????##???## ! * | | #?????????# #?????????####### != | | #?????????# ################# ! | | #?????????#o ### | | #?????????+ ### ! | | #?????????# ### | | #?????????# ### % | | #?????????# ### #### ###### | | #?????????# ### ??#### ###### | | #?????????# ??###????#### ###""" | | #?????????#????###????#### ###""" | | #?????????#????###????#### ###"S | +----------------------------------------------------+ Best States ------------- Heat Dissipation 72 Energy Generation 37 Energy Capacity 350 Matter Stores 300 Matter Capacity 300 Sight Range 23 Robot Scan Range 20 Terrain Scan Density 10 ECM Strength 2 Jamming Range 12 Armor Coverage 625 Resistance: EM 20 Evasion (%) 77 Targeting Accuracy 6 Launcher Accuracy 40 Armor Integrity Analysis 50 Recoil Reduction 4 Kinecelleration 30 Offensive Hacking 11 Defensive Hacking 10 Item Schematics ----------------- Cryofiber Web | -8/Storage | Hacked Lrg. Storage Unit | -8/Recycling | Hacked Hvy. Siege Treads | -6/Factory | Hacked Lrn. Tractor Beam | -6/Zion | Archive Flexi-carbon Leg | -6/Zion | Archive Lgt. Antimatter Reactor | -6/Zion | Archive Hvy. Plasma Cannon | -6/Zion | Archive Hyp. Coil Gun | -6/Zion | Archive Enh. Optical Array | -6/Zion | Archive Adv. System Restoration Module | -6/Zion | Archive Imp. Target Analyzer | -6/Zion | Archive Mass Driver | -6/Zion | Archive Hyp. Gauss Rifle | -6/Zion | Archive Adv. Cryofiber Web | -6/Zion | Archive Imp. Coolant Injector | -6/Zion | Archive Energy Well | -6/Zion | Archive Phase Cannon | -6/Zion | Archive Robot Schematics ------------------ G-50 Soldier | -6/Zion | Archive K-01 Serf | -6/Zion | Archive H-66 Slayer | -6/Zion | Archive C-57 Dissector | -6/Zion | Archive Fabricated ------------ Hvy. Machine Gun | x2 | -6/Factory | Preloaded Neutrino Core | x2 | -6/Factory | Preloaded Enh. Optical Array | x2 | -5/Factory Repaired ---------- Adv. Treads | 10% | -8/Storage Adv. Treads | 26% | -8/Storage Imp. Cooling System | 28% | -8/Storage Adv. Treads | 60% | -8/Storage Alien Tech Used ----------------- Subatomic Replicator Terrabomb Achievements -------------- None Challenges ------------ None Game ------ Seed CommRefineryTriangulator Manual? 0 Play Time 04:29:42 Cumulative 412.2 hours Start 2025.08.11 @ 09:09:40 End 2025.08.12 @ 20:55:14 Sessions 5 Manual Loads 0 Difficulty Rogue Special Mode None Game No. 271 Rogue 271 Adventurer 0 Explorer 0 Win Type - Total 28 Types 22/0/4/2/0/0/0/0/0/0 Lore% 91 Gallery% 82 Achievement% 68 Wizard Run 0 Options --------- Layout 0 ASCII 1 Keyboard 1 Movement Arrows Keybinds 0 Fullscreen 2 Font 18/Terminus Map View 76x50 Zoom Use 0% Tactical HUD 1 Map Filters NONE Filters NONE Steam 1 RUN: bb1a6308-7efc-4040-9d14-72d0bd5c1a3e